bitfinex/quotes_SOLUSD_20220211
["timestamp","ask_amount","ask_price","bid_price","bid_amount"]
[1644540614226,19.34209908,104.72,104.63,11.13]
[1644540614629,14.3441,104.71,104.63,11.13]
[1644540614829,41.72101792,104.7,104.63,11.13]
[1644540615229,14.3441,104.71,104.64,2.30211705]
[1644540615430,4.81961216,104.73,104.64,2.30211705]
[1644540615628,4.776,104.73,104.64,2.30211705]
[1644540616032,19.33792437,104.72,104.64,2.30211705]
[1644540616230,19.33792437,104.72,104.63,11.13]
[1644540616731,33.67962437,104.72,104.63,25.4721]
[1644540617134,4.776,104.73,104.64,13.48620973]
[1644540617345,42.09883754,104.72,104.64,13.48620973]
[1644540617531,111.94361216,104.74,104.64,13.48620973]
[1644540618033,19.33599434,104.73,104.64,13.48620973]
[1644540618432,0.04361216,104.74,104.62,52.5741]
[1644540618632,4.776,104.72,104.63,11.13]
[1644540618834,24.09538072,104.73,104.63,11.13]
[1644540619033,19.31938072,104.73,104.63,11.13]
[1644540619233,7.44573056,104.74,104.63,11.13]
[1644540619433,46.36709556,104.73,104.63,11.13]
[1644540619632,65.6757372,104.73,104.63,11.13]
[1644540619835,14.3423,104.72,104.63,25.4723]
[1644540620033,44.69141128,104.71,104.63,25.4723]
[1644540620843,44.69141128,104.71,104.64,1.86069919]
[1644540621233,44.69141128,104.71,104.64,14.3407]
[1644540621535,44.69141128,104.71,104.63,11.13]
[1644540621933,44.69141128,104.71,104.62,4.776]
[1644540621934,46.92263282,104.71,104.62,4.776]
[1644540622135,4.777,104.7,104.57,11.13]
[1644540622342,47.24019274,104.69,104.55,57.4273]
[1644540622534,7.4051184,104.68,104.55,57.4273]
[1644540622734,0.04361216,104.67,104.55,57.4273]
[1644540623335,44.32982407,104.67,104.56,11.7543487]
[1644540623534,58.68182407,104.67,104.56,14.3513]
[1644540623736,58.68182407,104.67,104.55,46.2973]
[1644540623938,7.0538337,104.66,104.55,46.2973]
[1644540624136,47.8523,104.65,104.55,46.2973]
[1644540624338,4.78,104.64,104.54,11.13]
[1644540624536,41.07191893,104.63,104.54,22.04436737]
[1644540624738,55.42761893,104.63,104.54,41.17806737]
[1644540625341,41.07191893,104.63,104.54,41.17806737]
[1644540625741,0.04361216,104.66,104.54,41.17806737]
[1644540625940,0.04361216,104.66,104.54,42.98490298]
[1644540626545,0.04361216,104.66,104.54,41.17806737]
[1644540626741,0.04361216,104.66,104.54,30.2637]
[1644540626942,0.04361216,104.66,104.5,1.80683561]
[1644540626943,4.78,104.65,104.5,1.80683561]
[1644540627143,5.28090908,104.64,104.51,11.13]
[1644540627343,4.82461216,104.63,104.5,11.13]
[1644540627543,52.68671216,104.63,104.5,11.13]
[1644540627842,40.18800195,104.62,104.51,10.18141312]
[1644540628042,54.54670195,104.62,104.51,134.70061312]
[1644540628242,54.54670195,104.62,104.51,35.66961312]
[1644540628543,40.18800195,104.62,104.53,4.28481666]
[1644540628743,40.18800195,104.62,104.53,15.41481666]
[1644540629042,40.18800195,104.62,104.53,11.13]
[1644540629242,4.781,104.61,104.51,11.13]
[1644540630051,4.781,104.61,104.52,10.53084089]
[1644540630349,40.18800195,104.62,104.54,3.93538889]
[1644540630951,40.18800195,104.62,104.53,11.13]
[1644540631148,54.54420195,104.62,104.53,11.13]
[1644540631546,69.08010195,104.62,104.51,11.13]
[1644540632146,54.54420195,104.62,104.51,11.13]
[1644540632347,54.54420195,104.62,104.52,2.68099176]
[1644540632551,54.54420195,104.62,104.51,25.4884]
[1644540632953,54.54420195,104.62,104.51,11.13]
[1644540633750,4.781,104.61,104.51,11.13]
[1644540633954,49.32026863,104.6,104.51,11.13]
[1644540635753,33.95926863,104.6,104.51,11.13]
[1644540635956,38.74126863,104.6,104.52,13.47372581]
[1644540636157,33.95926863,104.6,104.52,13.47372581]
[1644540637880,33.95926863,104.6,104.52,27.83082581]
[1644540638056,33.95926863,104.6,104.52,14.3571]
[1644540638758,33.95926863,104.6,104.51,11.13]
[1644540638759,33.95926863,104.6,104.51,25.4886]
[1644540639861,33.95926863,104.6,104.51,25.7386]
[1644540640969,48.31996863,104.6,104.51,11.13]
[1644540641570,4.782,104.59,104.51,11.13]
[1644540641967,57.67333809,104.58,104.49,11.13]
[1644540642168,57.67333809,104.58,104.46,4.782]
[1644540642372,7.01422154,104.57,104.46,4.782]
[1644540642574,26.14935238,104.57,104.46,4.782]
[1644540642973,48.36429345,104.56,104.46,15.72752846]
[1644540643175,48.36429345,104.56,104.44,18.9179]
[1644540643372,48.36429345,104.56,104.45,11.13]
[1644540643573,48.36429345,104.56,104.46,6.59083561]
[1644540643774,48.36429345,104.56,104.47,11.13]
[1644540644174,48.36429345,104.56,104.47,26.1944928]
[1644540644776,48.36429345,104.56,104.47,40.5582928]
[1644540645175,14.3643,104.57,104.47,40.5582928]
[1644540645396,14.3643,104.57,104.48,4.783]
[1644540645791,14.3618,104.58,104.49,1.80683561]
[1644540645991,24.2906,104.61,104.49,1.80683561]
[1644540646199,46.22956857,104.6,104.5,13.58857259]
[1644540646390,46.22956857,104.6,104.5,18.37057259]
[1644540646591,46.22956857,104.6,104.51,1.80683561]
[1644540646791,46.22956857,104.6,104.52,22.60507957]
[1644540646991,46.22956857,104.6,104.52,36.96237957]
[1644540647291,46.22956857,104.6,104.52,39.01921518]
[1644540647491,46.22956857,104.6,104.52,13.18683561]
[1644540647791,46.22956857,104.6,104.52,2.05683561]
[1644540648197,46.22956857,104.6,104.52,0.25]
[1644540648393,46.22956857,104.6,104.52,14.84290579]
[1644540648591,46.22956857,104.6,104.52,14.59290579]
[1644540648790,14.3582,104.61,104.52,14.84290579]
[1644540648996,24.85381216,104.63,104.52,14.84290579]
[1644540649198,14.39931216,104.63,104.53,25.4851]
[1644540649398,0.04361216,104.63,104.53,30.2661]
[1644540649594,0.04361216,104.64,104.54,1.80683561]
[1644540649898,0.04361216,104.63,104.54,24.8401596]
[1644540650092,42.24421384,104.64,104.54,24.8401596]
[1644540650696,42.20060168,104.64,104.54,24.8401596]
[1644540651395,42.20060168,104.64,104.55,14.3522]
[1644540651593,42.20060168,104.64,104.56,11.13]
[1644540651794,42.20060168,104.64,104.56,25.97290579]
[1644540652395,56.55290168,104.64,104.56,40.32490579]
[1644540653398,42.20060168,104.64,104.56,40.32490579]
[1644540653602,42.20060168,104.64,104.56,46.32490579]
[1644540654099,4.82361216,104.66,104.56,48.1317414]
[1644540654300,4.82361216,104.68,104.56,48.1317414]
[1644540654502,0.04361216,104.68,104.57,94.25]
[1644540654698,0.04361216,104.67,104.6,14.3455]
[1644540654899,0.04361216,104.68,104.61,11.13]
[1644540655099,43.23485474,104.69,104.61,13.8101596]
[1644540655299,43.23485474,104.69,104.61,14.0601596]
[1644540655703,43.23485474,104.69,104.61,13.18683561]
[1644540656100,43.23485474,104.69,104.61,11.38]
[1644540656901,43.23485474,104.69,104.62,1.86164234]
[1644540657101,7.44673056,104.72,104.62,1.86164234]
[1644540657303,2.66973056,104.72,104.62,13.24164234]
[1644540657501,0.04361216,104.72,104.62,27.58424234]
[1644540657701,19.27343535,104.71,104.62,31.7226]
[1644540657901,19.27343535,104.71,104.62,11.38]
[1644540658103,4.777,104.71,104.62,11.38]
[1644540658303,4.82061216,104.71,104.62,11.38]
[1644540658502,0.04361216,104.71,104.62,11.38]
[1644540658704,14.3442,104.71,104.62,24.47553922]
[1644540658902,40.02244689,104.7,104.62,24.47553922]
[1644540660106,14.3442,104.71,104.62,24.47553922]
[1644540660307,0.04361216,104.72,104.62,38.81833922]
[1644540660505,19.16261216,104.73,104.62,44.81833922]
[1644540660707,19.16261216,104.73,104.62,24.47553922]
[1644540661008,19.26426437,104.72,104.62,11.38]
[1644540661207,4.776,104.71,104.62,11.38]
[1644540661407,4.776,104.71,104.62,25.7226]
[1644540661606,4.81961216,104.71,104.62,25.7226]
[1644540661807,37.7752588,104.7,104.62,25.7226]
[1644540662406,37.7752588,104.7,104.62,11.38]
[1644540662608,37.7752588,104.7,104.62,11.13]
[1644540662808,40.00648034,104.7,104.58,4.776]
[1644540663007,24.01689519,104.69,104.58,4.776]
[1644540663207,41.86787712,104.68,104.58,4.776]
[1644540663405,4.777,104.67,104.58,4.776]
[1644540663609,7.00822154,104.67,104.58,4.776]
[1644540664006,14.352,104.66,104.58,4.776]
[1644540664206,14.352,104.66,104.57,17.13]
[1644540664408,41.48389306,104.65,104.57,25.39693046]
[1644540664608,41.48389306,104.65,104.57,31.39693046]
[1644540665511,41.48389306,104.65,104.57,33.19524977]
[1644540666010,41.48389306,104.65,104.58,4.779]
[1644540666211,41.48389306,104.65,104.58,21.909]
[1644540666715,41.48389306,104.65,104.58,17.13]
[1644540667112,55.83609306,104.65,104.58,17.13]
[1644540667308,55.83609306,104.65,104.58,17.38]
[1644540667510,55.83609306,104.65,104.58,11.38]
[1644540667711,55.83609306,104.65,104.58,11.13]
[1644540667910,4.779,104.64,104.58,11.13]
[1644540668113,14.355,104.63,104.54,4.779]
[1644540668312,4.78,104.62,104.54,4.779]
[1644540668712,47.04579515,104.61,104.54,4.779]
[1644540669114,61.40309515,104.61,104.54,4.779]
[1644540669310,47.04579515,104.61,104.54,6.57731931]
[1644540669911,47.8575,104.64,104.55,2.76538215]
[1644540670110,14.3558,104.63,104.55,2.76538215]
[1644540670313,4.82461216,104.65,104.56,1.79831931]
[1644540670512,0.04361216,104.65,104.56,12.92831931]
[1644540670710,4.78,104.66,104.56,13.17831931]
[1644540670912,4.82361216,104.66,104.57,1.79831931]
[1644540671115,4.78,104.66,104.55,11.13]
[1644540671316,4.82361216,104.66,104.55,11.38]
[1644540671713,19.22403237,104.65,104.55,11.38]
[1644540671913,4.78,104.64,104.55,11.38]
[1644540672115,14.356,104.62,104.55,11.38]
[1644540672317,44.09510154,104.61,104.55,11.38]
[1644540672914,44.09510154,104.61,104.53,34.5267]
[1644540673115,4.781,104.6,104.52,35.6379]
[1644540673315,37.65012004,104.59,104.52,35.6379]
[1644540673515,52.01022004,104.59,104.52,35.6379]
[1644540673716,52.01022004,104.59,104.52,11.13]
[1644540674718,37.65012004,104.59,104.52,11.13]
[1644540675117,37.65012004,104.59,104.52,11.38]
[1644540675918,37.65012004,104.59,104.52,11.13]
[1644540676122,37.65012004,104.59,104.52,11.38]
[1644540676823,37.65012004,104.59,104.52,11.13]
[1644540677020,52.01012004,104.59,104.52,11.13]
[1644540678120,52.01012004,104.59,104.5,24.8997]
[1644540678320,52.01012004,104.59,104.5,25.1497]
[1644540678726,56.79212004,104.59,104.5,25.1497]
[1644540679421,56.79212004,104.59,104.49,11.13]
[1644540679622,56.79212004,104.59,104.48,12.92831931]
[1644540679825,56.79212004,104.59,104.48,18.92831931]
[1644540680225,56.79212004,104.59,104.48,17.13]
[1644540680625,19.21378711,104.58,104.48,11.13]
[1644540680826,14.3672,104.55,104.45,11.13]
[1644540681734,34.90997155,104.54,104.45,22.99248884]
[1644540681924,34.90997155,104.54,104.45,27.77648884]
[1644540682127,34.90997155,104.54,104.45,29.58003397]
[1644540682825,34.90997155,104.54,104.45,32.33414513]
[1644540683426,34.90997155,104.54,104.45,30.5306]
[1644540683825,34.90997155,104.54,104.45,44.66079385]
[1644540684024,34.90997155,104.54,104.45,46.46433898]
[1644540684627,34.90997155,104.54,104.45,32.33414513]
[1644540684928,54.06147155,104.54,104.45,32.33414513]
[1644540686029,39.69397155,104.54,104.45,34.38201164]
[1644540686228,34.90997155,104.54,104.45,34.38201164]
[1644540686853,14.3654,104.56,104.45,34.38201164]
[1644540687052,19.146,104.59,104.46,99.034]
[1644540687353,51.7899,104.62,104.49,14.3607]
[1644540687651,51.7899,104.62,104.5,11.13]
[1644540687851,41.70264294,104.61,104.5,11.38]
[1644540688150,19.1414,104.6,104.5,11.13]
[1644540688351,21.37262154,104.6,104.47,11.13]
[1644540688656,21.4134317,104.59,104.47,11.38]
[1644540688852,4.783,104.58,104.47,11.38]
[1644540689051,36.90808793,104.57,104.47,11.38]
[1644540689253,4.783,104.56,104.47,11.38]
[1644540689454,39.8347322,104.55,104.47,11.38]
[1644540689651,39.8347322,104.55,104.48,1.33007369]
[1644540690051,39.8347322,104.55,104.48,3.38361882]
[1644540690456,39.8347322,104.55,104.49,11.13]
[1644540690854,39.8347322,104.55,104.5,1.80354513]
[1644540691257,39.8347322,104.55,104.5,2.05354513]
[1644540691755,39.8347322,104.55,104.49,11.13]
[1644540692556,39.8347322,104.55,104.48,1.33007369]
[1644540692757,39.8347322,104.55,104.48,1.58007369]
[1644540693155,54.2007322,104.55,104.48,1.58007369]
[1644540693955,54.2007322,104.55,104.48,1.33007369]
[1644540694560,4.784,104.54,104.48,1.33007369]
[1644540694760,14.3683,104.53,104.48,1.33007369]
[1644540694961,53.47962086,104.53,104.46,12.46007369]
[1644540695160,55.7108424,104.53,104.46,1.33007369]
[1644540695360,4.784,104.52,104.46,1.33007369]
[1644540695559,31.0,104.51,104.44,0.024]
[1644540695761,14.3765,104.47,104.4,0.024]
[1644540695959,14.3765,104.47,104.38,137.1746]
[1644540695960,40.52023929,104.46,104.39,0.024]
[1644540696160,40.52023929,104.46,104.38,137.1746]
[1644540696770,40.52023929,104.46,104.38,137.4246]
[1644540697760,54.89793929,104.46,104.38,137.1746]
[1644540697961,54.89793929,104.46,104.38,25.2746]
[1644540698160,54.89793929,104.46,104.38,27.07814513]
[1644540698364,54.89793929,104.46,104.38,42.3795353]
[1644540698562,40.52023929,104.46,104.38,47.1675353]
[1644540698864,40.52023929,104.46,104.38,53.1675353]
[1644540699063,14.3729,104.49,104.38,53.4175353]
[1644540699262,14.3729,104.49,104.39,0.024]
[1644540699462,14.3729,104.49,104.41,14.3725]
[1644540699665,14.3729,104.49,104.4,12.93354513]
[1644540699963,44.42577028,104.48,104.4,11.404]
[1644540700162,58.80087028,104.48,104.4,11.38]
[1644540700361,44.42577028,104.48,104.4,13.18354513]
[1644540700565,44.42577028,104.48,104.4,26.47363921]
[1644540700762,4.787,104.5,104.4,46.84763921]
[1644540700963,52.6903,104.53,104.4,51.65663921]
[1644540701262,47.9053,104.53,104.4,75.40833921]
[1644540701964,39.0204619,104.52,104.4,75.40833921]
[1644540702161,43.8054619,104.52,104.4,70.62333921]
[1644540702864,14.3701,104.51,104.4,70.37333921]
[1644540703066,36.19820603,104.5,104.4,70.37333921]
[1644540704368,36.19820603,104.5,104.4,71.97640197]
[1644540704566,51.4991,104.55,104.45,14.3657]
[1644540704766,4.785,104.55,104.45,20.6157]
[1644540704968,4.785,104.55,104.45,16.44324513]
[1644540705166,4.785,104.55,104.45,16.19324513]
[1644540705366,14.3669,104.54,104.45,0.274]
[1644540705567,41.26197326,104.53,104.45,0.024]
[1644540705767,36.47797326,104.53,104.44,0.024]
[1644540705968,4.785,104.52,104.44,0.024]
[1644540706168,4.785,104.52,104.42,41.8225]
[1644540706369,4.785,104.52,104.42,11.154]
[1644540706568,21.38562154,104.52,104.42,11.154]
[1644540706768,46.62412383,104.51,104.42,11.154]
[1644540706968,46.08147779,104.49,104.42,11.154]
[1644540707168,46.08147779,104.49,104.42,11.13]
[1644540707574,46.08147779,104.49,104.41,23.0673]
[1644540707771,60.45677779,104.49,104.41,23.3173]
[1644540708370,60.45677779,104.49,104.41,0.024]
[1644540710976,60.45677779,104.49,104.41,2.36311024]
[1644540711174,60.45677779,104.49,104.41,16.98591024]
[1644540711374,46.08147779,104.49,104.41,18.78536096]
[1644540711574,50.9423,104.53,104.43,13.7373161]
[1644540711774,4.785,104.54,104.44,11.13]
[1644540711976,4.785,104.55,104.44,11.13]
[1644540712176,1.3140167,104.57,104.45,6.60745072]
[1644540712375,1.3140167,104.58,104.46,35.5959]
[1644540712579,54.6491317,104.57,104.49,14.3616]
[1644540712776,54.6491317,104.57,104.49,25.7416]
[1644540712777,59.4321317,104.57,104.49,25.7416]
[1644540712974,54.6491317,104.57,104.49,25.7416]
[1644540713374,54.6491317,104.57,104.49,11.38]
[1644540713577,54.6491317,104.57,104.49,11.13]
[1644540713774,54.6491317,104.57,104.49,11.38]
[1644540714377,54.6491317,104.57,104.49,11.13]
[1644540714578,54.6491317,104.57,104.49,11.38]
[1644540715681,40.2857317,104.57,104.49,25.7418]
[1644540715881,40.2857317,104.57,104.5,14.69242955]
[1644540716084,40.2857317,104.57,104.51,11.13]
[1644540716280,40.2857317,104.57,104.51,11.38]
[1644540717082,40.2857317,104.57,104.51,11.13]
[1644540717280,40.2857317,104.57,104.51,11.38]
[1644540717579,40.2857317,104.57,104.51,11.13]
[1644540717784,40.2857317,104.57,104.51,11.38]
[1644540718481,40.2857317,104.57,104.51,11.13]
[1644540718683,40.2857317,104.57,104.51,11.38]
[1644540719885,40.2857317,104.57,104.51,16.3975533]
[1644540720902,40.2857317,104.57,104.51,11.38]
[1644540721304,53.9681167,104.61,104.51,11.38]
[1644540722504,36.61287732,104.6,104.51,11.38]
[1644540722705,19.1422,104.59,104.51,11.38]
[1644540722910,40.07454067,104.58,104.51,11.38]
[1644540725204,40.07454067,104.58,104.51,11.13]
[1644540725408,14.3602,104.59,104.52,4.37431742]
[1644540725609,15.6725167,104.61,104.52,4.37431742]
[1644540725805,14.3585,104.61,104.52,4.62431742]
[1644540726005,6.0960167,104.62,104.52,4.62431742]
[1644540726405,50.50162904,104.62,104.52,17.55376814]
[1644540726606,44.40561234,104.62,104.54,12.42198605]
[1644540726807,22.76271216,104.64,104.54,12.42198605]
[1644540726808,38.43012886,104.64,104.55,25.4833]
[1644540727005,14.3534,104.64,104.55,25.4833]
[1644540727306,1.35762886,104.65,104.55,25.7333]
[1644540727606,1.35762886,104.65,104.56,96.04945072]
[1644540727809,0.04361216,104.65,104.58,14.3479]
[1644540728008,159.88489588,104.68,104.58,14.3479]
[1644540728009,0.04361216,104.67,104.59,23.55198605]
[1644540728309,46.71449134,104.68,104.59,39.65443677]
[1644540728508,46.67087918,104.68,104.59,17.13]
[1644540728705,51.44787918,104.68,104.59,11.38]
[1644540728905,19.19619833,104.67,104.59,11.38]
[1644540729105,4.777,104.66,104.59,11.38]
[1644540729306,19.19619833,104.67,104.59,11.38]
[1644540729515,44.5474553,104.66,104.59,23.97313735]
[1644540729804,44.5474553,104.66,104.59,29.97313735]
[1644540730004,44.5474553,104.66,104.59,31.7261]
[1644540730207,44.5474553,104.66,104.59,11.38]
[1644540731409,44.5474553,104.66,104.6,2.74132117]
[1644540731606,0.04361216,104.69,104.6,2.74132117]
[1644540731806,0.04361216,104.7,104.6,2.99132117]
[1644540732007,19.20573074,104.69,104.6,0.25]
[1644540732608,33.55263074,104.69,104.59,71.7106]
[1644540732807,4.777,104.68,104.59,65.9606]
[1644540733009,34.61772003,104.67,104.59,65.9606]
[1644540733809,34.61772003,104.67,104.59,80.3074]
[1644540735817,34.61772003,104.67,104.59,18.83]
[1644540736018,4.777,104.66,104.59,7.7]
[1644540736417,39.39472003,104.67,104.59,7.7]
[1644540736916,19.13590135,104.66,104.59,7.7]
[1644540737116,19.1284,104.65,104.59,7.7]
[1644540738219,14.3572,104.61,104.52,4.779]
[1644540738416,4.781,104.6,104.52,4.779]
[1644540738816,4.781,104.62,104.52,4.779]
[1644540739017,45.02885303,104.61,104.52,4.779]
[1644540739218,43.40387838,104.59,104.52,4.779]
[1644540739419,57.76407838,104.59,104.52,4.779]
[1644540740919,57.76407838,104.59,104.52,0.25]
[1644540741122,57.76407838,104.59,104.51,14.4225]
[1644540742724,14.3602,104.59,104.52,0.95695231]
[1644540742924,14.3567,104.61,104.52,12.08695231]
[1644540743127,29.19222886,104.64,104.52,12.08695231]
[1644540743325,27.87821216,104.64,104.53,1.79706053]
[1644540743524,23.09721216,104.64,104.53,11.13]
[1644540743728,42.85606941,104.63,104.53,11.38]
[1644540744826,44.4721707,104.61,104.53,11.38]
[1644540746333,44.4721707,104.61,104.54,23.53935116]
[1644540746731,58.8289707,104.61,104.54,23.78935116]
[1644540746932,1.35762886,104.64,104.54,34.91935116]
[1644540747131,0.04361216,104.64,104.54,40.91935116]
[1644540747335,0.04361216,104.64,104.55,4.78]
[1644540747535,0.04361216,104.64,104.56,11.13]
[1644540747836,0.04361216,104.65,104.57,4.78]
[1644540748133,0.04361216,104.65,104.57,15.91]
[1644540748134,14.3505,104.65,104.57,15.91]
[1644540748335,14.3505,104.65,104.57,16.16]
[1644540749036,61.33599068,104.64,104.57,16.16]
[1644540750338,61.33599068,104.64,104.57,11.38]
[1644540750735,19.1291,104.65,104.58,20.52168083]
[1644540750935,1.35762886,104.67,104.58,31.65168083]
[1644540751139,1.3140167,104.67,104.58,31.90168083]
[1644540751736,1.3140167,104.67,104.58,11.38]
[1644540751940,14.3489,104.66,104.58,11.38]
[1644540752135,19.1279,104.66,104.58,11.38]
[1644540752335,19.1279,104.66,104.58,11.13]
[1644540752535,4.779,104.65,104.56,24.7558]
[1644540752737,39.01148943,104.64,104.56,24.7558]
[1644540752935,43.12733306,104.62,104.56,25.0058]
[1644540753135,43.12733306,104.62,104.56,0.25]
[1644540754336,43.12733306,104.62,104.54,75.60294942]
[1644540754537,43.12733306,104.62,104.54,69.60294942]
[1644540754737,57.48153306,104.62,104.54,63.6377]
[1644540754938,57.48153306,104.62,104.54,69.6377]
[1644540755137,57.48153306,104.62,104.54,63.6377]
[1644540755338,57.48153306,104.62,104.54,49.1557]
[1644540755539,59.7127546,104.62,104.53,4.78]
[1644540755740,14.3587,104.59,104.53,4.78]
[1644540755940,47.1227824,104.58,104.53,4.78]
[1644540756142,47.1227824,104.58,104.52,23.7339]
[1644540756751,47.1227824,104.58,104.52,29.9839]
[1644540756942,47.1227824,104.58,104.52,49.04145284]
[1644540757144,4.781,104.61,104.52,49.04145284]
[1644540757343,6.0960167,104.63,104.52,75.32312413]
[1644540757543,1.3140167,104.63,104.52,75.32312413]
[1644540758045,40.22331032,104.62,104.52,75.32312413]
[1644540758746,54.57731032,104.62,104.52,89.68052413]
[1644540759450,54.57731032,104.62,104.52,89.43052413]
[1644540760050,55.89132702,104.62,104.52,89.43052413]
[1644540760454,55.89132702,104.62,104.52,70.37297129]
[1644540760858,55.89132702,104.62,104.52,70.62297129]
[1644540761682,39.31462649,104.6,104.52,70.62297129]
[1644540761888,53.67162649,104.6,104.52,55.4713]
[1644540762482,53.67162649,104.6,104.52,49.4713]
[1644540763083,53.67162649,104.6,104.52,35.1139]
[1644540764083,53.67162649,104.6,104.52,53.0256039]
[1644540764884,4.781,104.61,104.52,161.6333039]
[1644540765086,1.3140167,104.62,104.52,78.1643039]
[1644540765289,1.3140167,104.63,104.52,187.56597519]
[1644540765487,54.4533167,104.64,104.52,187.56597519]
[1644540765688,1.3140167,104.63,104.52,189.3588296]
[1644540765888,36.22099433,104.63,104.52,189.3588296]
[1644540766989,36.22099433,104.63,104.52,201.13682459]
[1644540767390,36.22099433,104.63,104.52,209.80690191]
[1644540767992,14.3499,104.65,104.52,209.80690191]
[1644540768192,14.3499,104.65,104.52,348.95690191]
[1644540768592,14.39201216,104.66,104.52,349.40690191]
[1644540768793,14.3484,104.66,104.52,349.40690191]
[1644540769093,42.44507946,104.65,104.52,349.40690191]
[1644540769599,56.79467946,104.65,104.52,349.40690191]
[1644540770000,56.79467946,104.65,104.52,348.95690191]
[1644540770495,56.79467946,104.65,104.52,348.70690191]
[1644540771900,61.57467946,104.65,104.52,348.95690191]
[1644540772500,19.25323874,104.64,104.52,348.95690191]
[1644540772701,59.19257713,104.63,104.52,348.95690191]
[1644540773301,59.19257713,104.63,104.52,335.38605251]
[1644540774806,59.19257713,104.63,104.52,222.97434861]
[1644540775004,59.19257713,104.63,104.52,54.0026]
[1644540775403,19.28222891,104.62,104.52,54.0026]
[1644540775611,14.3583,104.59,104.52,49.2216]
[1644540775809,45.72036215,104.58,104.52,49.2216]
[1644540776610,45.72036215,104.58,104.52,49.4716]
[1644540777415,14.3583,104.59,104.52,49.4716]
[1644540778412,54.73839373,104.59,104.52,67.03595642]
[1644540778813,54.73839373,104.59,104.52,49.4716]
[1644540780930,54.73839373,104.59,104.52,49.2216]
[1644540781230,54.73839373,104.59,104.52,11.13]
[1644540781430,54.73839373,104.59,104.51,23.7365]
[1644540781631,4.782,104.58,104.51,23.7365]
[1644540781832,14.361,104.57,104.51,23.7365]
[1644540782032,38.21332872,104.56,104.51,23.7365]
[1644540782236,38.21332872,104.56,104.5,14.3846]
[1644540782441,38.21332872,104.56,104.5,14.3606]
[1644540782835,38.21332872,104.56,104.5,25.4906]
[1644540783034,38.21332872,104.56,104.5,25.7406]
[1644540783234,52.57422872,104.56,104.5,25.7406]
[1644540784836,52.57422872,104.56,104.5,25.4906]
[1644540785038,52.57422872,104.56,104.48,15.936]
[1644540785039,62.06022872,104.56,104.48,15.936]
[1644540785237,62.06022872,104.56,104.48,4.782]
[1644540786038,4.783,104.55,104.48,4.782]
[1644540786238,14.3664,104.53,104.48,4.782]
[1644540786438,14.3664,104.53,104.47,0.024]
[1644540786641,14.3664,104.53,104.45,57.7473]
[1644540787039,14.3664,104.53,104.45,11.13]
[1644540787439,44.97902551,104.52,104.45,11.13]
[1644540787642,59.34662551,104.52,104.45,11.13]
[1644540788440,4.785,104.51,104.44,0.024]
[1644540788639,14.3724,104.49,104.42,14.0398]
[1644540788841,14.3724,104.49,104.42,14.0158]
[1644540789240,36.00068413,104.48,104.41,11.154]
[1644540789445,36.00068413,104.48,104.41,0.024]
[1644540789642,40.78768413,104.48,104.4,25.6064]
[1644540789843,36.00068413,104.48,104.4,25.6064]
[1644540790042,36.00068413,104.48,104.41,6.49468862]
[1644540790245,14.3747,104.47,104.41,6.49468862]
[1644540790842,14.3747,104.47,104.4,39.9798]
[1644540791543,14.3747,104.47,104.4,40.2298]
[1644540791743,14.3747,104.47,104.4,25.7534]
[1644540791945,46.62353336,104.46,104.4,11.38]
[1644540792143,60.99873336,104.46,104.4,11.13]
[1644540793846,60.99873336,104.46,104.4,11.38]
[1644540794144,60.99873336,104.46,104.4,11.13]
[1644540794545,60.99873336,104.46,104.4,11.38]
[1644540795450,60.99873336,104.46,104.4,11.13]
[1644540795646,60.99873336,104.46,104.4,11.38]
[1644540800054,60.99873336,104.46,104.4,17.27609921]
[1644540800254,60.99873336,104.46,104.4,11.38]
[1644540801857,60.99873336,104.46,104.38,59.4875]
[1644540802056,60.99873336,104.46,104.38,0.024]
[1644540802257,4.788,104.45,104.36,48.5212]
[1644540802556,14.3796,104.43,104.37,0.024]
[1644540802756,14.3796,104.43,104.36,0.024]
[1644540802757,46.58435384,104.42,104.36,0.024]
[1644540802968,46.58435384,104.42,104.34,0.024]